[Event "Titled Tuesday Blitz July 4 Late 2023"]
[White "Hilary46"]
[Black "Ibarra Jerez, Jose Carlos"]
[BlackFideId "2226332"]
[WhiteElo "2646"]
[BlackElo "2863"]
[Result "1-0"]
[Round "10"]
[TimeControl "180+2"]
[Date "2023.07.04"]
[WhiteClock "0:00:55"]
[BlackClock "0:00:05"]
[Board "20"]

1. e4 {[%clk 0:03:00]}  c5 {[%clk 0:02:58]} 2. Nf3 {[%clk 0:03:01]}  e6 {[%clk 0:02:58]} 3. d4 {[%clk 0:03:01]}  cxd4 {[%clk 0:02:59]} 4. Nxd4 {[%clk 0:03:02]}  Bc5 {[%clk 0:02:59]} 5. Nb3 {[%clk 0:02:55]}  Bb6 {[%clk 0:03:00]} 6. Nc3 {[%clk 0:02:51]}  Ne7 {[%clk 0:03:00]} 7. g3 {[%clk 0:02:46]}  O-O {[%clk 0:03:00]} 8. Bg2 {[%clk 0:02:47]}  f5 {[%clk 0:03:01]} 9. O-O {[%clk 0:02:47]}  Nbc6 {[%clk 0:03:01]} 10. Qe2 {[%clk 0:02:36]}  fxe4 {[%clk 0:02:55]} 11. Nxe4 {[%clk 0:02:37]}  d5 {[%clk 0:02:55]} 12. Ng5 {[%clk 0:02:37]}  e5 {[%clk 0:02:51]} 13. c4 {[%clk 0:02:32]}  d4 {[%clk 0:02:34]} 14. Be4 {[%clk 0:02:32]}  h6 {[%clk 0:02:34]} 15. Qh5 {[%clk 0:02:21]}  Bf5 {[%clk 0:02:30]} 16. g4 {[%clk 0:02:15]}  Bxe4 {[%clk 0:01:58]} 17. Nxe4 {[%clk 0:02:15]}  Qe8 {[%clk 0:01:50]} 18. Qxe8 {[%clk 0:02:11]}  Raxe8 {[%clk 0:01:49]} 19. Kg2 {[%clk 0:02:06]}  Ng6 {[%clk 0:01:49]} 20. f3 {[%clk 0:02:03]}  Re7 {[%clk 0:01:44]} 21. Kg3 {[%clk 0:02:01]}  Bc7 {[%clk 0:01:43]} 22. Bd2 {[%clk 0:01:59]}  Ref7 {[%clk 0:01:42]} 23. Nc1 {[%clk 0:01:54]}  Bd8 {[%clk 0:01:42]} 24. Nd3 {[%clk 0:01:52]}  Bh4+ {[%clk 0:01:40]} 25. Kg2 {[%clk 0:01:52]}  Be7 {[%clk 0:01:41]} 26. Be1 {[%clk 0:01:46]}  a5 {[%clk 0:01:40]} 27. Bg3 {[%clk 0:01:45]}  Bh4 {[%clk 0:01:33]} 28. b3 {[%clk 0:01:45]}  Be7 {[%clk 0:01:31]} 29. c5 {[%clk 0:01:41]}  Rd8 {[%clk 0:01:21]} 30. a3 {[%clk 0:01:40]}  Bh4 {[%clk 0:01:12]} 31. b4 {[%clk 0:01:40]}  Bxg3 {[%clk 0:01:08]} 32. hxg3 {[%clk 0:01:39]}  Nce7 {[%clk 0:01:07]} 33. Nd6 {[%clk 0:01:34]}  Rf6 {[%clk 0:01:03]} 34. Nxb7 {[%clk 0:01:32]}  Rdf8 {[%clk 0:01:03]} 35. Nxa5 {[%clk 0:01:26]}  Nd5 {[%clk 0:01:03]} 36. Nc4 {[%clk 0:01:26]}  Nc3 {[%clk 0:00:57]} 37. Rae1 {[%clk 0:01:22]}  e4 {[%clk 0:00:46]} 38. fxe4 {[%clk 0:01:21]}  Nxe4 {[%clk 0:00:46]} 39. Rxf6 {[%clk 0:01:20]}  Nxf6 {[%clk 0:00:46]} 40. Nce5 {[%clk 0:01:16]}  Ne7 {[%clk 0:00:45]} 41. b5 {[%clk 0:01:15]}  Ned5 {[%clk 0:00:46]} 42. c6 {[%clk 0:01:12]}  Ne3+ {[%clk 0:00:46]} 43. Rxe3 {[%clk 0:01:12]}  dxe3 {[%clk 0:00:46]} 44. b6 {[%clk 0:01:13]}  Nd5 {[%clk 0:00:45]} 45. b7 {[%clk 0:01:11]}  Ne7 {[%clk 0:00:19]} 46. c7 {[%clk 0:01:06]}  e2 {[%clk 0:00:16]} 47. b8=Q {[%clk 0:01:03]}  Nc8 {[%clk 0:00:13]} 48. Nd7 {[%clk 0:00:59]}  Re8 {[%clk 0:00:05]} 49. Nb6 {[%clk 0:00:55]} 1-0


[Site "https://www.chess.com"]

[Event "Titled Tuesday Blitz July 4 Late 2023"]
[White "Sousa, Andre Ventura"]
[Black "Grigoriants, Sergey"]
[WhiteFideId "1917617"]
[BlackFideId "4130804"]
[WhiteElo "2596"]
[BlackElo "2854"]
[Result "0-1"]
[Round "10"]
[TimeControl "180+2"]
[Date "2023.07.04"]
[WhiteClock "0:00:33"]
[BlackClock "0:00:28"]
[Board "22"]

1. e4 {[%clk 0:03:00]}  c5 {[%clk 0:02:51]} 2. Nf3 {[%clk 0:03:00]}  Nc6 {[%clk 0:02:46]} 3. Bb5 {[%clk 0:03:00]}  g6 {[%clk 0:02:43]} 4. O-O {[%clk 0:02:58]}  Bg7 {[%clk 0:02:41]} 5. Bxc6 {[%clk 0:02:52]}  dxc6 {[%clk 0:02:39]} 6. d3 {[%clk 0:02:51]}  e5 {[%clk 0:02:39]} 7. Be3 {[%clk 0:02:46]}  b6 {[%clk 0:02:38]} 8. a4 {[%clk 0:02:47]}  Ne7 {[%clk 0:02:21]} 9. a5 {[%clk 0:02:47]}  Rb8 {[%clk 0:02:15]} 10. Nc3 {[%clk 0:02:39]}  h6 {[%clk 0:02:08]} 11. Nd2 {[%clk 0:02:39]}  O-O {[%clk 0:02:06]} 12. f4 {[%clk 0:02:36]}  exf4 {[%clk 0:01:38]} 13. Bxf4 {[%clk 0:02:36]}  Rb7 {[%clk 0:01:36]} 14. Nc4 {[%clk 0:02:30]}  Be6 {[%clk 0:01:35]} 15. Nd6 {[%clk 0:02:04]}  Rd7 {[%clk 0:01:33]} 16. e5 {[%clk 0:02:03]}  f6 {[%clk 0:01:15]} 17. axb6 {[%clk 0:01:50]}  axb6 {[%clk 0:01:15]} 18. exf6 {[%clk 0:01:44]}  Rxf6 {[%clk 0:00:55]} 19. Nde4 {[%clk 0:01:31]}  Rf8 {[%clk 0:00:55]} 20. Qd2 {[%clk 0:01:30]}  g5 {[%clk 0:00:52]} 21. Bg3 {[%clk 0:01:27]}  Nf5 {[%clk 0:00:52]} 22. Bf2 {[%clk 0:01:15]}  c4 {[%clk 0:00:52]} 23. Na4 {[%clk 0:01:02]}  c5 {[%clk 0:00:44]} 24. Nxb6 {[%clk 0:01:00]}  Qxb6 {[%clk 0:00:42]} 25. Bxc5 {[%clk 0:00:56]}  Bd4+ {[%clk 0:00:41]} 26. Bxd4 {[%clk 0:00:56]}  Qxd4+ {[%clk 0:00:42]} 27. Kh1 {[%clk 0:00:57]}  Qxe4 {[%clk 0:00:39]} 28. dxe4 {[%clk 0:00:48]}  Rxd2 {[%clk 0:00:39]} 29. exf5 {[%clk 0:00:48]}  Rxf5 {[%clk 0:00:35]} 30. Rxf5 {[%clk 0:00:45]}  Bxf5 {[%clk 0:00:36]} 31. b3 {[%clk 0:00:45]}  Be4 {[%clk 0:00:34]} 32. bxc4 {[%clk 0:00:43]}  Rxg2 {[%clk 0:00:33]} 33. h4 {[%clk 0:00:41]}  g4 {[%clk 0:00:28]} 34. h5 {[%clk 0:00:40]}  g3 {[%clk 0:00:28]} 35. Rf1 {[%clk 0:00:32]}  Rh2+ {[%clk 0:00:28]} 36. Kg1 {[%clk 0:00:33]}  Rh1# {[%clk 0:00:28]} 0-1


[Site "https://www.chess.com"]

[Event "Titled Tuesday Blitz July 4 Late 2023"]
[White "Oro, Faustino"]
[Black "Ozates, Tuna"]
[WhiteFideId "20000197"]
[BlackFideId "6354521"]
[WhiteElo "2807"]
[BlackElo "2580"]
[Result "1-0"]
[Round "10"]
[TimeControl "180+2"]
[Date "2023.07.04"]
[WhiteClock "0:00:48"]
[BlackClock "0:00:04"]
[Board "23"]

1. Nf3 {[%clk 0:03:00]}  c5 {[%clk 0:03:00]} 2. e4 {[%clk 0:03:00]}  Nc6 {[%clk 0:03:00]} 3. Bb5 {[%clk 0:02:59]}  g6 {[%clk 0:03:00]} 4. O-O {[%clk 0:02:59]}  Bg7 {[%clk 0:03:00]} 5. c3 {[%clk 0:02:57]}  Nf6 {[%clk 0:03:00]} 6. Re1 {[%clk 0:02:56]}  O-O {[%clk 0:03:00]} 7. d4 {[%clk 0:02:53]}  d5 {[%clk 0:02:56]} 8. e5 {[%clk 0:02:53]}  Ne4 {[%clk 0:02:57]} 9. Nbd2 {[%clk 0:02:53]}  cxd4 {[%clk 0:02:55]} 10. cxd4 {[%clk 0:02:51]}  Bf5 {[%clk 0:02:54]} 11. Nb3 {[%clk 0:02:49]}  f6 {[%clk 0:02:48]} 12. exf6 {[%clk 0:02:47]}  exf6 {[%clk 0:02:47]} 13. Bf4 {[%clk 0:02:44]}  Rc8 {[%clk 0:02:45]} 14. Rc1 {[%clk 0:02:42]}  Re8 {[%clk 0:02:39]} 15. h3 {[%clk 0:02:28]}  g5 {[%clk 0:02:38]} 16. Bh2 {[%clk 0:02:28]}  Bg6 {[%clk 0:02:34]} 17. Nc5 {[%clk 0:02:22]}  Nxc5 {[%clk 0:02:20]} 18. Rxc5 {[%clk 0:02:23]}  Rxe1+ {[%clk 0:02:19]} 19. Qxe1 {[%clk 0:02:23]}  Be4 {[%clk 0:02:19]} 20. Qc3 {[%clk 0:02:10]}  Ne7 {[%clk 0:01:42]} 21. Bc7 {[%clk 0:02:07]}  Qf8 {[%clk 0:01:23]} 22. Bd6 {[%clk 0:02:05]}  Rd8 {[%clk 0:01:17]} 23. Bc7 {[%clk 0:02:01]}  Ra8 {[%clk 0:01:16]} 24. Nd2 {[%clk 0:01:40]}  f5 {[%clk 0:01:10]} 25. Be5 {[%clk 0:01:32]}  Bxe5 {[%clk 0:01:05]} 26. dxe5 {[%clk 0:01:33]}  b6 {[%clk 0:00:55]} 27. Rc7 {[%clk 0:01:33]}  Rc8 {[%clk 0:00:55]} 28. Nb3 {[%clk 0:01:29]}  f4 {[%clk 0:00:50]} 29. Nd4 {[%clk 0:01:27]}  Rxc7 {[%clk 0:00:43]} 30. Qxc7 {[%clk 0:01:26]}  Nf5 {[%clk 0:00:21]} 31. Ne6 {[%clk 0:01:01]}  Qe7 {[%clk 0:00:20]} 32. Qc8+ {[%clk 0:00:51]}  Kf7 {[%clk 0:00:20]} 33. Bd7 {[%clk 0:00:52]}  Ne3 {[%clk 0:00:03]} 34. fxe3 {[%clk 0:00:50]}  Qb4 {[%clk 0:00:04]} 35. Qe8# {[%clk 0:00:48]} 1-0


[Site "https://www.chess.com"]

[Event "Titled Tuesday Blitz July 4 Late 2023"]
[White "ArtemDyachuk"]
[Black "Rustemov, Alexander"]
[BlackFideId "4119002"]
[WhiteElo "2571"]
[BlackElo "2804"]
[Result "0-1"]
[Round "10"]
[TimeControl "180+2"]
[Date "2023.07.04"]
[WhiteClock "0:01:13"]
[BlackClock "0:01:34"]
[Board "24"]

1. e4 {[%clk 0:03:00]}  e6 {[%clk 0:02:59]} 2. d4 {[%clk 0:03:00]}  d5 {[%clk 0:03:00]} 3. e5 {[%clk 0:02:56]}  c5 {[%clk 0:02:59]} 4. c3 {[%clk 0:02:56]}  Qb6 {[%clk 0:02:59]} 5. Nf3 {[%clk 0:02:55]}  Bd7 {[%clk 0:02:59]} 6. Be2 {[%clk 0:02:54]}  cxd4 {[%clk 0:02:55]} 7. cxd4 {[%clk 0:02:54]}  Bb5 {[%clk 0:02:54]} 8. Nc3 {[%clk 0:02:51]}  Bxe2 {[%clk 0:02:53]} 9. Qxe2 {[%clk 0:02:49]}  Nc6 {[%clk 0:02:51]} 10. O-O {[%clk 0:02:49]}  Nge7 {[%clk 0:02:49]} 11. Be3 {[%clk 0:02:45]}  Nf5 {[%clk 0:02:49]} 12. Rfd1 {[%clk 0:02:38]}  Be7 {[%clk 0:02:48]} 13. a3 {[%clk 0:02:36]}  O-O {[%clk 0:02:47]} 14. b4 {[%clk 0:02:36]}  Rfc8 {[%clk 0:02:43]} 15. Rac1 {[%clk 0:02:35]}  Qd8 {[%clk 0:02:36]} 16. Qd3 {[%clk 0:02:34]}  Qd7 {[%clk 0:02:15]} 17. Ne2 {[%clk 0:02:33]}  a6 {[%clk 0:02:00]} 18. Nf4 {[%clk 0:02:21]}  Na7 {[%clk 0:01:57]} 19. g4 {[%clk 0:02:09]}  Nxe3 {[%clk 0:01:43]} 20. fxe3 {[%clk 0:02:07]}  Rxc1 {[%clk 0:01:43]} 21. Rxc1 {[%clk 0:02:06]}  Rc8 {[%clk 0:01:44]} 22. Rxc8+ {[%clk 0:02:05]}  Qxc8 {[%clk 0:01:42]} 23. h4 {[%clk 0:02:04]}  Qc1+ {[%clk 0:01:37]} 24. Kg2 {[%clk 0:02:03]}  Nb5 {[%clk 0:01:37]} 25. a4 {[%clk 0:01:46]}  Nc3 {[%clk 0:01:36]} 26. b5 {[%clk 0:01:37]}  axb5 {[%clk 0:01:36]} 27. axb5 {[%clk 0:01:32]}  Qb2+ {[%clk 0:01:35]} 28. Kg3 {[%clk 0:01:13]}  Ne4+ {[%clk 0:01:34]} 0-1


[Site "https://www.chess.com"]

[Event "Titled Tuesday Blitz July 4 Late 2023"]
[White "Hambleton, Aman"]
[Black "AdvanceGuard4"]
[WhiteFideId "2606577"]
[WhiteElo "2790"]
[BlackElo "2563"]
[Result "1-0"]
[Round "10"]
[TimeControl "180+2"]
[Date "2023.07.04"]
[WhiteClock "0:00:02"]
[BlackClock "0:00:00"]
[Board "25"]

1. d4 {[%clk 0:03:00]}  Nf6 {[%clk 0:02:51]} 2. Bf4 {[%clk 0:03:01]}  g6 {[%clk 0:02:46]} 3. Nc3 {[%clk 0:02:59]}  d5 {[%clk 0:02:43]} 4. e3 {[%clk 0:02:59]}  Bg7 {[%clk 0:02:41]} 5. h4 {[%clk 0:02:59]}  c5 {[%clk 0:02:33]} 6. Nb5 {[%clk 0:02:56]}  Na6 {[%clk 0:02:33]} 7. c3 {[%clk 0:02:56]}  Bd7 {[%clk 0:02:29]} 8. a4 {[%clk 0:02:56]}  Ne4 {[%clk 0:02:24]} 9. Nf3 {[%clk 0:02:55]}  O-O {[%clk 0:02:22]} 10. Nd2 {[%clk 0:02:35]}  Nxd2 {[%clk 0:02:19]} 11. Qxd2 {[%clk 0:02:35]}  Re8 {[%clk 0:02:09]} 12. Be2 {[%clk 0:00:49]}  e5 {[%clk 0:02:02]} 13. dxe5 {[%clk 0:00:50]}  Bxe5 {[%clk 0:02:02]} 14. Bxe5 {[%clk 0:00:14]}  Rxe5 {[%clk 0:02:03]} 15. g3 {[%clk 0:00:13]}  Bc6 {[%clk 0:01:59]} 16. O-O {[%clk 0:00:13]}  Qf6 {[%clk 0:01:45]} 17. Bg4 {[%clk 0:00:02]}  Rae8 {[%clk 0:01:21]} 18. Bh3 {[%clk 0:00:02]}  d4 {[%clk 0:01:22]} 19. cxd4 {[%clk 0:00:02]}  Qf3 {[%clk 0:01:22]} 20. Kh2 {[%clk 0:00:03]}  R5e7 {[%clk 0:00:52]} 21. Rg1 {[%clk 0:00:02]}  Qf6 {[%clk 0:00:24]} 22. Bg2 {[%clk 0:00:02]}  Nb4 {[%clk 0:00:16]} 23. d5 {[%clk 0:00:02]}  Rd8 {[%clk 0:00:05]} 24. e4 {[%clk 0:00:02]}  Bxb5 {[%clk 0:00:04]} 25. axb5 {[%clk 0:00:03]}  a6 {[%clk 0:00:03]} 26. bxa6 {[%clk 0:00:03]}  bxa6 {[%clk 0:00:03]} 27. Rac1 {[%clk 0:00:03]}  Qd6 {[%clk 0:00:00]} 28. Qe3 {[%clk 0:00:02]} 1-0


[Site "https://www.chess.com"]

[Event "Titled Tuesday Blitz July 4 Late 2023"]
[White "Fernandez Guillen, Ernesto J."]
[Black "musclemonster12"]
[WhiteFideId "3512428"]
[WhiteElo "2748"]
[BlackElo "2560"]
[Result "1/2-1/2"]
[Round "10"]
[TimeControl "180+2"]
[Date "2023.07.04"]
[WhiteClock "0:00:29"]
[BlackClock "0:00:17"]
[Board "26"]

1. e4 {[%clk 0:03:00]}  c5 {[%clk 0:02:58]} 2. Nf3 {[%clk 0:03:00]}  d6 {[%clk 0:02:58]} 3. d4 {[%clk 0:03:00]}  cxd4 {[%clk 0:02:59]} 4. Nxd4 {[%clk 0:03:01]}  Nf6 {[%clk 0:03:00]} 5. Nc3 {[%clk 0:03:02]}  Nc6 {[%clk 0:03:01]} 6. Bc4 {[%clk 0:03:02]}  Qb6 {[%clk 0:03:00]} 7. Ndb5 {[%clk 0:03:01]}  a6 {[%clk 0:02:46]} 8. Be3 {[%clk 0:03:01]}  Qa5 {[%clk 0:02:47]} 9. Nd4 {[%clk 0:03:01]}  Bd7 {[%clk 0:02:31]} 10. Nb3 {[%clk 0:03:00]}  Qc7 {[%clk 0:02:30]} 11. Bd3 {[%clk 0:03:00]}  e6 {[%clk 0:02:29]} 12. f4 {[%clk 0:03:01]}  b5 {[%clk 0:02:27]} 13. a3 {[%clk 0:03:01]}  h5 {[%clk 0:02:26]} 14. Qf3 {[%clk 0:02:59]}  Be7 {[%clk 0:02:24]} 15. h3 {[%clk 0:02:58]}  h4 {[%clk 0:02:23]} 16. O-O-O {[%clk 0:02:56]}  Bc8 {[%clk 0:02:21]} 17. e5 {[%clk 0:02:53]}  Nd7 {[%clk 0:02:13]} 18. Bxb5 {[%clk 0:02:45]}  axb5 {[%clk 0:02:04]} 19. Nxb5 {[%clk 0:02:42]}  Qb7 {[%clk 0:02:03]} 20. Nxd6+ {[%clk 0:02:41]}  Bxd6 {[%clk 0:02:03]} 21. Rxd6 {[%clk 0:02:42]}  Ne7 {[%clk 0:01:52]} 22. Qg4 {[%clk 0:02:37]}  Nf5 {[%clk 0:01:51]} 23. Rd3 {[%clk 0:02:38]}  Qe4 {[%clk 0:01:37]} 24. Re1 {[%clk 0:02:28]}  Ba6 {[%clk 0:01:33]} 25. Rc3 {[%clk 0:02:14]}  O-O {[%clk 0:01:33]} 26. Bf2 {[%clk 0:01:59]}  Qb7 {[%clk 0:01:22]} 27. Bxh4 {[%clk 0:01:53]}  Rfc8 {[%clk 0:01:22]} 28. Rf3 {[%clk 0:01:53]}  Qc6 {[%clk 0:01:03]} 29. Rc3 {[%clk 0:01:19]}  Qa4 {[%clk 0:01:03]} 30. Bf2 {[%clk 0:00:59]}  Rxc3 {[%clk 0:01:01]} 31. bxc3 {[%clk 0:01:00]}  Qxa3+ {[%clk 0:00:58]} 32. Kd2 {[%clk 0:01:00]}  Rd8 {[%clk 0:00:38]} 33. Qg5 {[%clk 0:00:55]}  f6 {[%clk 0:00:34]} 34. exf6 {[%clk 0:00:48]}  Nxf6+ {[%clk 0:00:35]} 35. Bd4 {[%clk 0:00:45]}  Bc4 {[%clk 0:00:33]} 36. g4 {[%clk 0:00:39]}  Nxd4 {[%clk 0:00:20]} 37. Nxd4 {[%clk 0:00:36]}  Rxd4+ {[%clk 0:00:20]} 38. cxd4 {[%clk 0:00:33]}  Qb4+ {[%clk 0:00:20]} 39. Kd1 {[%clk 0:00:30]}  Qb1+ {[%clk 0:00:20]} 40. Kd2 {[%clk 0:00:30]}  Qb4+ {[%clk 0:00:20]} 41. Kd1 {[%clk 0:00:29]}  Qb1+ {[%clk 0:00:17]} 42. Kd2 {[%clk 0:00:29]}  Qb4+ {[%clk 0:00:17]} 1/2-1/2


[Site "https://www.chess.com"]

[Event "Titled Tuesday Blitz July 4 Late 2023"]
[White "only_strong_moves"]
[Black "Matinian, Nikita"]
[BlackFideId "24129100"]
[WhiteElo "2528"]
[BlackElo "2693"]
[Result "0-1"]
[Round "10"]
[TimeControl "180+2"]
[Date "2023.07.04"]
[WhiteClock "0:00:00"]
[BlackClock "0:00:03"]
[Board "28"]

1. d4 {[%clk 0:03:00]}  Nf6 {[%clk 0:02:59]} 2. c4 {[%clk 0:03:01]}  e6 {[%clk 0:02:59]} 3. Nf3 {[%clk 0:03:01]}  Bb4+ {[%clk 0:02:59]} 4. Bd2 {[%clk 0:02:55]}  a5 {[%clk 0:02:59]} 5. a3 {[%clk 0:02:54]}  Bxd2+ {[%clk 0:02:59]} 6. Qxd2 {[%clk 0:02:55]}  b6 {[%clk 0:02:51]} 7. Nc3 {[%clk 0:02:54]}  Bb7 {[%clk 0:02:51]} 8. Qc2 {[%clk 0:02:48]}  d5 {[%clk 0:02:39]} 9. cxd5 {[%clk 0:02:48]}  exd5 {[%clk 0:02:38]} 10. g3 {[%clk 0:02:49]}  c5 {[%clk 0:02:35]} 11. Bg2 {[%clk 0:02:48]}  O-O {[%clk 0:02:35]} 12. O-O {[%clk 0:02:48]}  Nc6 {[%clk 0:02:35]} 13. Rad1 {[%clk 0:02:45]}  Rc8 {[%clk 0:02:31]} 14. e3 {[%clk 0:02:44]}  Qe7 {[%clk 0:02:03]} 15. Qb1 {[%clk 0:02:34]}  Rfd8 {[%clk 0:02:01]} 16. Rfe1 {[%clk 0:02:35]}  Ne4 {[%clk 0:01:58]} 17. Na4 {[%clk 0:02:01]}  Qc7 {[%clk 0:01:42]} 18. Nd2 {[%clk 0:01:33]}  cxd4 {[%clk 0:01:42]} 19. Nxe4 {[%clk 0:01:32]}  dxe4 {[%clk 0:01:41]} 20. Bxe4 {[%clk 0:01:33]}  dxe3 {[%clk 0:01:41]} 21. Rxe3 {[%clk 0:01:27]}  Nd4 {[%clk 0:01:31]} 22. Nc3 {[%clk 0:01:22]}  f5 {[%clk 0:01:12]} 23. Bd5+ {[%clk 0:00:53]}  Bxd5 {[%clk 0:00:57]} 24. Rxd4 {[%clk 0:00:53]}  Bb7 {[%clk 0:00:49]} 25. Qa2+ {[%clk 0:00:50]}  Kh8 {[%clk 0:00:47]} 26. Qe6 {[%clk 0:00:50]}  h6 {[%clk 0:00:39]} 27. Rxd8+ {[%clk 0:00:36]}  Rxd8 {[%clk 0:00:38]} 28. h4 {[%clk 0:00:22]}  f4 {[%clk 0:00:31]} 29. Re5 {[%clk 0:00:09]}  fxg3 {[%clk 0:00:28]} 30. fxg3 {[%clk 0:00:10]}  Rd6 {[%clk 0:00:13]} 31. Qe8+ {[%clk 0:00:10]}  Kh7 {[%clk 0:00:13]} 32. Re3 {[%clk 0:00:09]}  Rf6 {[%clk 0:00:05]} 33. Qe5 {[%clk 0:00:04]}  Qc6 {[%clk 0:00:05]} 34. Ne4 {[%clk 0:00:02]}  Qc1+ {[%clk 0:00:04]} 35. Kh2 {[%clk 0:00:00]}  Qc2+ {[%clk 0:00:03]} 0-1


[Site "https://www.chess.com"]

[Event "Titled Tuesday Blitz July 4 Late 2023"]
[White "Papp, Levente"]
[Black "Molenda, Marcin"]
[WhiteFideId "751243"]
[BlackFideId "1173065"]
[WhiteElo "2690"]
[BlackElo "2520"]
[Result "1-0"]
[Round "10"]
[TimeControl "180+2"]
[Date "2023.07.04"]
[WhiteClock "0:00:06"]
[BlackClock "0:00:04"]
[Board "29"]

1. b3 {[%clk 0:03:00]}  g6 {[%clk 0:02:57]} 2. Bb2 {[%clk 0:03:01]}  Nf6 {[%clk 0:02:58]} 3. Nf3 {[%clk 0:03:01]}  Bg7 {[%clk 0:02:58]} 4. g3 {[%clk 0:03:01]}  O-O {[%clk 0:02:59]} 5. Bg2 {[%clk 0:03:02]}  c5 {[%clk 0:02:59]} 6. c4 {[%clk 0:03:02]}  Nc6 {[%clk 0:02:56]} 7. O-O {[%clk 0:03:02]}  d5 {[%clk 0:02:52]} 8. cxd5 {[%clk 0:03:03]}  Nxd5 {[%clk 0:02:52]} 9. Bxg7 {[%clk 0:03:03]}  Kxg7 {[%clk 0:02:53]} 10. d4 {[%clk 0:03:04]}  cxd4 {[%clk 0:02:51]} 11. Nxd4 {[%clk 0:03:05]}  Nxd4 {[%clk 0:02:51]} 12. Qxd4+ {[%clk 0:03:05]}  Nf6 {[%clk 0:02:51]} 13. Qb2 {[%clk 0:03:05]}  Qb6 {[%clk 0:02:48]} 14. Nc3 {[%clk 0:03:02]}  Bd7 {[%clk 0:02:41]} 15. Nd5 {[%clk 0:02:56]}  Qe6 {[%clk 0:02:16]} 16. Nc7 {[%clk 0:02:55]}  Qg4 {[%clk 0:02:13]} 17. Nxa8 {[%clk 0:02:54]}  Rxa8 {[%clk 0:02:14]} 18. Rac1 {[%clk 0:02:49]}  Bc6 {[%clk 0:02:10]} 19. Bxc6 {[%clk 0:02:46]}  bxc6 {[%clk 0:02:11]} 20. Rxc6 {[%clk 0:02:47]}  Rd8 {[%clk 0:02:11]} 21. Rc7 {[%clk 0:02:30]}  Rd5 {[%clk 0:02:07]} 22. f3 {[%clk 0:01:01]}  Qe6 {[%clk 0:01:58]} 23. Rc4 {[%clk 0:00:50]}  Qe3+ {[%clk 0:01:54]} 24. Rf2 {[%clk 0:00:48]}  Rd2 {[%clk 0:01:40]} 25. Qc3 {[%clk 0:00:45]}  Rd1+ {[%clk 0:01:36]} 26. Kg2 {[%clk 0:00:45]}  Qb6 {[%clk 0:01:32]} 27. Rf1 {[%clk 0:00:38]}  Rd6 {[%clk 0:01:25]} 28. e4 {[%clk 0:00:35]}  e5 {[%clk 0:01:17]} 29. Rf2 {[%clk 0:00:28]}  Nd7 {[%clk 0:01:15]} 30. Rd2 {[%clk 0:00:27]}  h5 {[%clk 0:01:08]} 31. Rxd6 {[%clk 0:00:22]}  Qxd6 {[%clk 0:01:09]} 32. Qc2 {[%clk 0:00:16]}  h4 {[%clk 0:01:07]} 33. Rc3 {[%clk 0:00:15]}  Qe6 {[%clk 0:01:07]} 34. Rc6 {[%clk 0:00:14]}  h3+ {[%clk 0:01:07]} 35. Kf2 {[%clk 0:00:14]}  Qe7 {[%clk 0:01:06]} 36. Qc3 {[%clk 0:00:12]}  Nf8 {[%clk 0:00:56]} 37. Rc5 {[%clk 0:00:12]}  Kf6 {[%clk 0:00:52]} 38. f4 {[%clk 0:00:10]}  Nd7 {[%clk 0:00:51]} 39. Rd5 {[%clk 0:00:11]}  Kg7 {[%clk 0:00:43]} 40. fxe5 {[%clk 0:00:10]}  Nf8 {[%clk 0:00:41]} 41. e6+ {[%clk 0:00:10]}  Kh7 {[%clk 0:00:40]} 42. g4 {[%clk 0:00:08]}  Nxe6 {[%clk 0:00:26]} 43. Qxh3+ {[%clk 0:00:09]}  Kg8 {[%clk 0:00:26]} 44. Qg3 {[%clk 0:00:08]}  Qb4 {[%clk 0:00:17]} 45. Qe3 {[%clk 0:00:08]}  Qa3 {[%clk 0:00:15]} 46. Rd2 {[%clk 0:00:07]}  Qa5 {[%clk 0:00:12]} 47. e5 {[%clk 0:00:07]}  Qb5 {[%clk 0:00:11]} 48. h4 {[%clk 0:00:07]}  Qb4 {[%clk 0:00:10]} 49. Kg3 {[%clk 0:00:07]}  Nc5 {[%clk 0:00:10]} 50. Rd4 {[%clk 0:00:05]}  Qa3 {[%clk 0:00:10]} 51. Rc4 {[%clk 0:00:06]}  Ne6 {[%clk 0:00:10]} 52. h5 {[%clk 0:00:06]}  Qb2 {[%clk 0:00:10]} 53. hxg6 {[%clk 0:00:06]}  fxg6 {[%clk 0:00:10]} 54. Rc8+ {[%clk 0:00:06]}  Kf7 {[%clk 0:00:04]} 55. Qxa7+ {[%clk 0:00:06]} 1-0


[Site "https://www.chess.com"]

[Event "Titled Tuesday Blitz July 4 Late 2023"]
[White "Skatchkov, Valery"]
[Black "Toniutti, Ezio"]
[WhiteFideId "24195812"]
[BlackFideId "113034"]
[WhiteElo "2674"]
[BlackElo "2517"]
[Result "1-0"]
[Round "10"]
[TimeControl "180+2"]
[Date "2023.07.04"]
[WhiteClock "0:00:22"]
[BlackClock "0:00:00"]
[Board "30"]

1. d4 {[%clk 0:03:00]}  d5 {[%clk 0:02:57]} 2. c4 {[%clk 0:03:00]}  c6 {[%clk 0:02:57]} 3. cxd5 {[%clk 0:03:01]}  cxd5 {[%clk 0:02:58]} 4. Bg5 {[%clk 0:03:01]}  f6 {[%clk 0:02:56]} 5. Bd2 {[%clk 0:03:02]}  Nc6 {[%clk 0:02:56]} 6. Nc3 {[%clk 0:03:00]}  Be6 {[%clk 0:02:55]} 7. Nf3 {[%clk 0:02:58]}  Bf7 {[%clk 0:02:55]} 8. e4 {[%clk 0:02:56]}  dxe4 {[%clk 0:02:42]} 9. Nxe4 {[%clk 0:02:55]}  Nh6 {[%clk 0:02:32]} 10. Bd3 {[%clk 0:02:40]}  Nf5 {[%clk 0:02:24]} 11. Nxf6+ {[%clk 0:02:37]}  exf6 {[%clk 0:02:20]} 12. Bxf5 {[%clk 0:02:38]}  Bd6 {[%clk 0:02:17]} 13. O-O {[%clk 0:02:38]}  O-O {[%clk 0:02:16]} 14. Re1 {[%clk 0:02:36]}  Qb6 {[%clk 0:02:11]} 15. Bc3 {[%clk 0:02:33]}  Rad8 {[%clk 0:02:10]} 16. Qd3 {[%clk 0:02:33]}  g6 {[%clk 0:02:09]} 17. Be6 {[%clk 0:02:34]}  Nb4 {[%clk 0:01:58]} 18. Qe4 {[%clk 0:02:22]}  Rfe8 {[%clk 0:01:50]} 19. d5 {[%clk 0:02:19]}  Bc5 {[%clk 0:01:38]} 20. Bxf7+ {[%clk 0:02:13]}  Kxf7 {[%clk 0:01:36]} 21. Qh4 {[%clk 0:02:14]}  h5 {[%clk 0:01:29]} 22. Rxe8 {[%clk 0:01:59]}  Rxe8 {[%clk 0:01:27]} 23. Rd1 {[%clk 0:02:00]}  Nxa2 {[%clk 0:01:18]} 24. Bxf6 {[%clk 0:01:30]}  Qxf6 {[%clk 0:01:13]} 25. Qc4 {[%clk 0:01:31]}  Bd6 {[%clk 0:00:44]} 26. Qxa2 {[%clk 0:01:29]}  Re2 {[%clk 0:00:44]} 27. Qxa7 {[%clk 0:01:03]}  Rxb2 {[%clk 0:00:42]} 28. h4 {[%clk 0:01:04]}  Qe7 {[%clk 0:00:18]} 29. Ng5+ {[%clk 0:01:01]}  Kg7 {[%clk 0:00:18]} 30. Ne6+ {[%clk 0:00:56]}  Kh7 {[%clk 0:00:16]} 31. Qd4 {[%clk 0:00:54]}  Re2 {[%clk 0:00:11]} 32. Ra1 {[%clk 0:00:44]}  Re5 {[%clk 0:00:10]} 33. Ng5+ {[%clk 0:00:44]}  Kh6 {[%clk 0:00:06]} 34. Qd2 {[%clk 0:00:34]}  Kg7 {[%clk 0:00:05]} 35. Ne6+ {[%clk 0:00:34]}  Kh7 {[%clk 0:00:05]} 36. g3 {[%clk 0:00:30]}  Bc5 {[%clk 0:00:00]} 37. Ra8 {[%clk 0:00:22]} 1-0


[Site "https://www.chess.com"]